bitfinex-derivatives/quotes_ETHF0:USTF0_20240922
["timestamp","ask_amount","ask_price","bid_price","bid_amount"]
[1727043359210,0.394,2537.7,2536.9,1.02085218]
[1727043359415,0.394,2537.7,2537.0,0.3941]
[1727043359620,4.3838,2537.8,2536.9,2.82201]
[1727043359621,3.2078,2537.5,2536.9,2.82201]
[1727043360112,3.2078,2537.5,2536.9,1.2704]
[1727043360314,4.3742,2537.5,2536.9,1.2704]
[1727043360518,0.39405,2537.4,2536.9,1.2704]
[1727043360820,4.3742,2537.5,2536.9,1.2704]
[1727043361015,4.3742,2537.5,2537.0,0.39409]
[1727043361418,4.3742,2537.5,2537.1,0.39408]
[1727043361619,4.3742,2537.5,2537.0,0.39409]
[1727043361814,4.3742,2537.5,2536.9,1.2704]
[1727043361815,1.2251,2537.6,2537.2,0.39406]
[1727043362115,1.2251,2537.6,2537.0,3.2078]
[1727043362313,4.3838,2537.8,2537.0,3.2078]
[1727043362514,4.3838,2537.8,2537.5,0.39402]
[1727043362712,4.3838,2537.8,2537.4,0.39404]
[1727043363520,4.3838,2537.8,2537.2,1.1954]
[1727043363714,4.3838,2537.8,2536.9,6.00947827]
[1727043363715,3.2078,2537.5,2536.9,5.89316218]
[1727043363920,3.2078,2537.5,2536.9,4.4782]
[1727043364117,3.2078,2537.5,2537.0,0.3941]
[1727043364520,3.2078,2537.5,2536.9,1.2704]
[1727043364724,3.2078,2537.5,2537.0,0.3941]
[1727043365228,3.2078,2537.5,2537.1,0.39408]
[1727043365622,3.2078,2537.2,2536.6,1.02085218]
[1727043365825,3.60193,2536.9,2536.3,0.3942]
[1727043366026,1.265,2536.8,2536.6,0.39416]
[1727043366327,2.483,2537.1,2536.7,0.39415]
[1727043366532,2.483,2537.1,2536.3,4.22865218]
[1727043366827,1.2466,2537.1,2536.4,1.02085218]
[1727043367431,1.2466,2537.1,2536.8,0.39413]
[1727043367729,1.2466,2537.1,2536.7,0.39414]
[1727043368818,1.2466,2537.1,2536.6,2.18425218]
[1727043369022,1.2466,2537.1,2536.7,0.39415]
[1727043369923,1.2466,2537.1,2536.6,8.04205218]
[1727043370123,1.2147,2537.3,2537.0,0.3941]
[1727043370326,3.2078,2537.6,2537.1,0.39408]
[1727043370516,3.2078,2537.6,2536.9,12.95565218]
[1727043370823,2.4166,2537.8,2537.3,3.2078]
[1727043371026,3.2078,2537.9,2537.5,0.39402]
[1727043371418,1.61282,2538.2,2537.5,0.39402]
[1727043371623,3.2078,2538.1,2537.6,0.39401]
[1727043371817,3.2078,2538.1,2537.4,3.36575218]
[1727043372118,1.2189,2538.2,2537.4,2.3449]
[1727043372119,3.60178,2537.8,2537.4,2.3449]
[1727043372325,1.1992,2537.7,2537.4,2.3449]
[1727043372925,1.2189,2538.2,2537.6,0.394]
[1727043372926,4.4267,2538.2,2537.6,0.394]
[1727043373229,5.6259,2538.2,2537.4,2.3449]
[1727043373426,5.6259,2538.2,2537.5,0.39401]
[1727043373820,6.01982,2538.2,2537.4,2.73893]
[1727043374020,3.2078,2537.9,2537.5,0.39402]
[1727043374329,5.6259,2538.2,2537.6,0.394]
[1727043374527,5.6259,2538.2,2537.9,0.39396]
[1727043374728,5.6259,2538.2,2537.5,2.65]
[1727043374729,5.6259,2538.2,2537.5,3.67085218]
[1727043374928,2.4181,2538.2,2537.7,0.39398]
[1727043375131,2.4181,2538.2,2537.7,6.46998]
[1727043375721,5.6259,2538.2,2537.7,6.076]
[1727043375928,3.2078,2537.9,2537.7,6.076]
[1727043376129,5.6259,2538.2,2537.7,6.076]
[1727043376435,3.60177,2537.9,2537.4,1.1815]
[1727043376635,3.2078,2537.9,2537.4,1.1815]
[1727043376841,3.2078,2537.9,2537.6,0.39401]
[1727043377331,3.2078,2537.9,2537.5,0.39402]
[1727043377532,4.4412,2538.1,2537.4,3.8315]
[1727043377825,4.4412,2538.1,2537.5,0.39401]
[1727043378236,0.39395,2538.0,2537.4,1.57553]
[1727043378532,3.2078,2537.8,2537.4,1.57553]
[1727043378719,3.2078,2537.8,2537.5,0.39402]
[1727043378918,1.2334,2538.1,2537.5,0.39402]
[1727043378919,4.83514,2538.1,2537.5,0.39402]
[1727043379119,4.83514,2538.1,2537.6,0.39401]
[1727043379531,3.2078,2537.8,2537.3,3.2078]
[1727043379729,0.39403,2537.5,2537.3,3.2078]
[1727043379930,3.2078,2537.4,2536.9,1.2799]
[1727043380140,3.2078,2537.4,2536.8,0.39412]
[1727043380141,3.2078,2537.0,2536.8,0.39412]
[1727043380337,3.2078,2537.0,2536.9,0.39412]
[1727043380828,3.2078,2537.4,2537.3,0.39406]
[1727043381024,3.2078,2537.4,2537.3,4.3349]
[1727043381233,1.2704,2537.7,2537.4,0.39407]
[1727043381527,1.174,2537.9,2537.6,0.39404]
[1727043381729,3.2078,2538.3,2537.4,7.3559]
[1727043381934,3.2078,2538.3,2537.5,0.39406]
[1727043381935,3.2078,2538.0,2537.5,0.39406]
[1727043382228,3.2078,2538.0,2537.4,7.3559]
[1727043382229,3.2078,2538.0,2537.6,0.39404]
[1727043382427,3.2078,2538.0,2537.5,0.39406]
[1727043382828,3.2078,2538.0,2537.6,0.39405]
[1727043383034,1.2393,2538.2,2537.6,0.39405]
[1727043383434,3.2078,2538.0,2537.6,0.39405]
[1727043384833,3.2078,2538.3,2537.7,2.65]
[1727043385130,1.1717,2538.4,2537.7,3.8822]
[1727043385333,1.1717,2538.4,2537.7,4.90305218]
[1727043385529,1.1717,2538.4,2537.9,0.394]
[1727043385730,3.2078,2538.3,2537.9,0.394]
[1727043385938,3.2078,2538.3,2537.7,5.29707218]
[1727043386132,3.2078,2538.3,2537.7,1.62622]
[1727043386328,3.2078,2538.3,2537.7,1.62623]
[1727043386636,3.2078,2538.3,2537.7,1.62622]
[1727043387342,3.2078,2538.3,2537.9,0.394]
[1727043387537,3.2078,2538.3,2538.0,0.39398]
[1727043387837,1.1717,2538.4,2538.0,0.39398]
[1727043388042,4.4804,2538.6,2538.1,0.39396]
[1727043388242,3.2078,2538.6,2538.2,7.0787]
[1727043388540,3.63953549,2539.5,2538.5,0.3939]
[1727043388541,3.2078,2539.0,2538.5,0.3939]
[1727043389129,3.2078,2539.0,2538.4,0.39392]
[1727043389335,3.2078,2539.0,2538.3,1.2365]
[1727043389536,3.2078,2539.0,2538.6,0.39389]
[1727043389739,1.27,2539.1,2538.3,5.1404]
[1727043389935,3.2078,2539.3,2538.9,0.39385]
[1727043390240,3.2078,2539.3,2539.1,0.39381]
[1727043390444,3.2078,2539.3,2539.2,0.3938]
[1727043390635,3.2078,2539.3,2539.0,5.839]
[1727043390636,3.2078,2539.3,2539.1,1.63251]
[1727043391036,3.2078,2539.3,2539.1,2.79511]
[1727043391234,4.4778,2539.7,2539.1,2.4013]
[1727043391535,4.4778,2539.7,2539.2,0.39379]
[1727043391935,3.2078,2539.4,2538.7,9.0468]
[1727043392140,1.2235,2539.3,2538.7,9.0468]
[1727043392344,1.2235,2539.3,2538.8,0.39385]
[1727043392537,1.2235,2539.3,2538.7,5.839]
[1727043392538,1.2235,2539.3,2538.9,0.39385]
[1727043392737,3.2078,2539.4,2538.9,5.8578]
[1727043392943,1.27,2539.7,2539.0,1.2444]
[1727043393242,3.2078,2539.5,2538.9,6.23184]
[1727043393444,3.2078,2539.5,2538.9,9.7324]
[1727043393642,3.2078,2539.5,2539.1,0.39381]
[1727043393944,3.2078,2539.5,2538.9,9.7324]
[1727043394142,3.2078,2539.5,2539.2,0.39379]
[1727043394344,3.2078,2539.5,2538.9,9.7324]
[1727043394345,3.2078,2539.5,2539.0,0.39383]
[1727043394533,3.2078,2539.5,2538.9,9.7324]
[1727043395239,3.2078,2539.5,2539.2,0.39379]
[1727043395545,3.2078,2539.5,2539.3,0.39378]
[1727043395741,3.2078,2539.5,2539.0,1.1739]
[1727043395944,3.2078,2539.5,2539.0,0.39382]
[1727043396138,3.2078,2539.5,2538.9,9.7324]
[1727043396544,3.2078,2539.5,2539.2,0.39379]
[1727043396847,2.4009,2539.9,2539.3,1.56828]
[1727043396848,3.2078,2539.8,2539.3,1.56828]
[1727043397043,3.2078,2539.8,2539.3,1.1745]
[1727043397238,3.2078,2539.8,2539.4,1.1549]
[1727043397439,3.2078,2539.8,2539.4,1.54866]
[1727043397642,3.2078,2540.3,2539.6,2.65]
[1727043397936,3.2078,2540.3,2539.6,3.04373]
[1727043398135,3.2078,2540.3,2539.6,2.65]
[1727043398346,3.2078,2540.0,2539.6,2.65]
[1727043398550,3.2078,2540.0,2539.4,1.1549]
[1727043398747,1.2484,2539.9,2539.4,1.54867]
[1727043398939,1.2484,2539.9,2539.4,1.1549]
[1727043399340,3.2078,2539.7,2539.3,1.1745]
[1727043399636,3.2078,2539.7,2539.3,1.56828]
[1727043399842,1.2012,2539.8,2539.4,0.39376]
[1727043400246,1.2484,2539.9,2539.6,0.39373]
[1727043400448,1.182,2540.2,2539.8,0.3937]
[1727043400649,1.182,2540.2,2539.9,0.39368]
[1727043401038,1.182,2540.2,2539.7,1.2541]
[1727043401240,3.2078,2540.0,2539.7,1.2541]
[1727043401452,1.182,2540.2,2539.7,1.2541]
[1727043401752,3.2078,2540.0,2539.4,5.836]
[1727043401942,3.2078,2539.9,2539.4,6.22977]
[1727043402450,3.2078,2539.6,2539.4,5.836]
[1727043402643,3.2078,2539.6,2538.9,5.836]
[1727043402844,1.271,2539.8,2539.1,0.39381]
[1727043402845,3.2078,2539.3,2539.1,0.39381]
[1727043403042,3.2078,2539.3,2539.2,0.3938]
[1727043403241,4.4788,2539.8,2539.2,9.00340277]
[1727043403543,4.4788,2539.8,2539.0,7.71500277]
[1727043403544,4.4788,2539.8,2539.3,2.4098]
[1727043403846,4.4788,2539.8,2539.3,1.2331]
[1727043403847,3.2078,2539.6,2539.3,1.2331]
[1727043404041,3.2078,2539.6,2539.0,3.8907]
[1727043404042,3.2078,2539.6,2539.1,5.836]
[1727043404250,3.2078,2539.6,2539.1,6.22981]
[1727043404640,3.2078,2539.6,2539.1,5.836]
[1727043404847,3.2078,2539.3,2539.1,5.836]
[1727043405153,3.2078,2539.7,2539.1,6.22981]
[1727043405350,3.2078,2539.7,2539.3,0.39378]
[1727043405549,3.2078,2539.7,2539.1,5.836]
[1727043406244,3.2078,2539.7,2539.2,0.39379]
[1727043406950,1.271,2539.8,2538.3,3.2078]
[1727043406951,3.2078,2539.4,2538.3,3.2078]
[1727043407253,3.2078,2539.1,2538.7,0.39388]
[1727043407453,3.2078,2539.1,2538.6,1.62238]
[1727043407642,3.2078,2538.8,2538.4,5.612]
[1727043407848,3.2078,2538.8,2538.1,6.8405]
[1727043408051,3.2078,2538.8,2537.8,13.0548]
[1727043408052,3.60172,2538.5,2537.9,0.394]
[1727043408246,1.1706,2538.7,2537.8,1.60321]
[1727043408247,3.2078,2538.2,2537.8,1.60321]
[1727043408450,3.2078,2538.2,2537.8,1.2092]
[1727043408650,4.848,2538.6,2537.8,1.2092]
[1727043408849,3.2078,2538.3,2538.0,0.39398]
[1727043409067,3.2078,2538.3,2537.8,1.2092]
[1727043409245,3.2078,2538.3,2537.6,3.2078]
[1727043409246,3.2078,2538.3,2537.7,5.853]
[1727043409449,3.2078,2538.1,2537.7,5.853]
[1727043410153,3.2078,2538.1,2537.7,6.24702]
[1727043410347,3.2078,2538.1,2537.7,5.853]
[1727043410747,3.2078,2538.5,2538.0,0.39399]
[1727043411656,3.2078,2538.5,2538.0,0.39398]
[1727043412157,1.2463,2538.6,2537.8,3.2078]
[1727043412363,3.2078,2538.5,2538.1,0.39397]
[1727043412762,1.2463,2538.6,2538.2,1.57495]
[1727043413550,1.2463,2538.6,2538.2,1.181]
[1727043413751,3.2078,2538.8,2538.2,1.181]
[1727043413966,3.2078,2538.8,2538.2,4.3888]
[1727043414162,3.2078,2538.8,2538.3,0.39393]
[1727043414367,3.2078,2538.8,2538.2,1.181]
[1727043414666,3.2078,2538.5,2538.2,1.181]
[1727043415354,2.3635,2538.7,2538.2,1.57495]
[1727043415963,2.3635,2538.7,2538.2,4.78275]
[1727043416260,2.3635,2538.7,2538.2,1.181]
[1727043416957,3.2078,2538.5,2538.0,5.854]
[1727043417156,3.2078,2538.4,2538.0,5.854]
[1727043417360,3.2078,2538.4,2538.0,6.24798]
[1727043417570,7.20708,2538.7,2538.0,6.24798]
[1727043417761,3.2078,2538.4,2538.0,6.24798]
[1727043418068,3.2078,2538.4,2538.0,5.854]
[1727043418456,3.2078,2538.4,2537.8,1.1822]
[1727043418653,3.2078,2538.5,2537.8,7.0362]
[1727043418857,3.2078,2538.2,2537.8,7.43021]
[1727043419070,3.2078,2537.9,2537.5,1.224]
[1727043419256,3.2078,2537.9,2537.5,1.61806]
[1727043419457,3.2078,2538.0,2537.6,0.39404]
[1727043419767,3.2078,2538.0,2537.5,1.61806]
[1727043419955,3.2078,2538.0,2537.5,1.224]
[1727043419956,4.4225,2538.0,2537.5,1.224]
[1727043420156,4.4225,2538.0,2537.8,0.39401]
[1727043420157,3.2078,2538.0,2537.8,0.39401]
[1727043420362,3.2078,2538.3,2537.9,0.394]
[1727043420563,3.2078,2538.0,2537.6,1.1885]
[1727043420768,3.2078,2538.0,2537.4,1.1458]
[1727043421063,1.2419,2538.7,2537.0,3.2078]
[1727043421064,0.39407,2537.5,2537.0,3.2078]
[1727043421271,4.81658,2537.4,2536.8,8.89817]
[1727043421562,4.4225,2537.4,2537.1,0.39412]
[1727043421768,4.4225,2537.4,2536.8,8.504]
[1727043421769,4.4225,2537.4,2537.2,0.39411]
[1727043421967,4.4225,2537.4,2536.8,8.504]
[1727043422158,4.4225,2537.4,2536.8,6.24816]
[1727043422159,3.2078,2537.2,2536.8,6.24816]
[1727043422359,1.252,2537.3,2537.0,0.39413]
[1727043422561,1.252,2537.3,2537.1,0.39413]
[1727043422771,1.252,2537.3,2537.0,0.39414]
[1727043423163,1.252,2537.3,2536.9,0.39415]
[1727043423361,1.252,2537.3,2536.8,8.504]
[1727043423555,3.2078,2537.2,2536.8,8.89817]
[1727043423766,3.2078,2537.2,2536.8,8.504]
[1727043423965,3.2078,2537.2,2536.8,8.89817]
[1727043424557,1.252,2537.3,2536.8,8.89817]
[1727043424759,1.252,2537.3,2536.9,0.39414]
[1727043425164,1.2147,2537.4,2537.0,0.39414]
[1727043425357,3.2078,2537.5,2537.1,0.39412]
[1727043425558,3.2078,2537.5,2537.2,2.3522]
[1727043427361,3.2078,2537.5,2537.3,0.39409]
[1727043427557,3.2078,2537.5,2537.2,2.7463]
[1727043427970,3.2078,2537.5,2537.2,2.3522]
[1727043428170,3.2078,2537.5,2537.2,2.7463]
[1727043428561,3.2078,2537.5,2537.2,2.3522]
[1727043429068,3.2078,2537.5,2537.2,2.74631]
[1727043429266,3.2078,2537.5,2537.2,2.7463]
[1727043429465,1.1418,2537.8,2537.4,2.65]
[1727043429666,3.2078,2537.9,2537.8,0.39402]
[1727043429868,3.2078,2538.6,2538.1,0.39396]
[1727043430071,3.2078,2538.6,2538.1,3.04396]
[1727043430773,3.2078,2538.6,2538.1,2.65]
[1727043431273,3.2078,2538.6,2538.1,0.39396]
[1727043431778,3.2078,2538.6,2537.9,4.3456]
[1727043431969,3.2078,2538.6,2538.0,0.39398]
[1727043432362,3.2078,2538.6,2537.9,1.1378]
[1727043432363,3.2078,2538.6,2538.1,7.68835543]
[1727043432564,3.2078,2538.6,2538.4,0.39392]
[1727043432879,3.2078,2538.6,2538.3,0.39393]
[1727043433068,3.2078,2539.0,2538.7,0.39387]
[1727043433274,3.2078,2539.3,2538.8,5.0]
[1727043433477,3.2078,2539.3,2538.8,2.35]
[1727043433666,3.2078,2539.3,2538.8,2.74385]
[1727043434271,3.2078,2539.3,2538.8,2.35]
[1727043434966,1.1516,2539.6,2538.1,5.8578]
[1727043434967,3.2078,2539.0,2538.1,5.8578]
[1727043435274,1.1729,2538.9,2538.7,0.39387]
[1727043435469,3.2078,2539.0,2538.4,5.8578]
[1727043435773,3.2078,2539.0,2538.6,0.39388]
[1727043437169,3.2078,2539.0,2538.7,1.2179]
[1727043438174,3.2078,2539.3,2538.7,1.2179]
[1727043438777,3.2078,2539.3,2538.7,1.61177]
[1727043439380,3.2078,2539.3,2538.7,1.2179]
[1727043439675,3.2078,2539.3,2538.7,1.61177]
[1727043439869,3.2078,2539.3,2538.8,1.1793]
[1727043440676,3.2078,2539.3,2538.8,1.57316]
[1727043440881,3.2078,2539.3,2538.8,1.1793]
[1727043441181,1.1725,2539.7,2539.5,0.39374]
[1727043441384,3.2078,2539.9,2539.4,8.274]
[1727043441572,3.2078,2539.9,2539.8,0.39371]
[1727043441885,3.2078,2539.9,2539.5,2.3617]
[1727043442080,3.2078,2539.9,2539.7,0.39371]
[1727043442280,3.2078,2539.9,2539.5,2.3617]
[1727043442489,3.2078,2539.9,2539.5,2.75545]
[1727043442674,3.2078,2539.9,2539.5,2.3617]
[1727043443071,3.2078,2539.9,2539.5,1.1369]
[1727043443373,3.2078,2539.9,2539.8,0.39371]
[1727043443575,3.2078,2539.9,2539.8,6.39371]
[1727043443779,3.2078,2539.9,2539.8,10.33131]
[1727043444084,3.2078,2539.9,2539.8,11.55611]
[1727043444478,3.2078,2539.9,2539.8,5.55611]
[1727043444779,3.2078,2539.9,2539.5,3.2078]
[1727043444987,1.1394,2539.8,2539.4,0.39377]
[1727043445180,1.1394,2539.8,2539.6,0.39373]
[1727043445480,1.1394,2539.8,2539.4,2.65]
[1727043445683,1.1394,2539.8,2539.4,3.04376]
[1727043445884,1.1394,2539.8,2539.2,8.1084]
[1727043446073,1.1394,2539.8,2539.0,4.3894]
[1727043446074,3.2078,2539.6,2539.0,3.2078]
[1727043446596,3.2078,2539.3,2538.9,5.623]
[1727043446782,1.1394,2539.2,2538.9,5.623]
[1727043447087,1.1394,2539.2,2538.9,6.01685]
[1727043447273,1.1394,2539.2,2539.0,0.39383]
[1727043447473,1.1394,2539.2,2539.0,4.33223]
[1727043447682,3.2078,2539.6,2539.1,3.9384]
[1727043447887,3.2078,2539.6,2539.2,0.39379]
[1727043448186,3.2078,2539.6,2539.5,0.39375]
[1727043448384,1.214,2539.8,2539.5,0.39375]
[1727043448772,1.214,2539.8,2539.2,1.64189]
[1727043449083,1.214,2539.8,2539.3,0.39378]
[1727043449476,3.2078,2539.6,2538.8,3.2078]
[1727043449680,3.2078,2539.6,2538.9,6.01683]
[1727043449876,3.2078,2539.3,2538.9,5.623]
[1727043450079,1.1838,2539.2,2538.9,5.623]
[1727043451179,3.2078,2539.1,2538.5,3.2078]
[1727043451376,3.2078,2539.1,2538.4,3.8508]
[1727043451377,3.2078,2538.6,2537.9,2.55213045]
[1727043451582,1.1838,2538.5,2537.8,11.65241]
[1727043452079,3.2078,2538.3,2537.8,6.8498]
[1727043452279,2.3415,2538.5,2537.9,2.65]
[1727043452479,2.3415,2538.5,2538.0,0.39398]
[1727043452678,2.3415,2538.5,2538.1,0.39397]
[1727043453094,2.3415,2538.5,2538.0,0.39398]
[1727043454093,2.3415,2538.5,2537.9,4.24479]
[1727043454287,3.2078,2538.6,2538.2,2.65]
[1727043454588,5.5696,2539.1,2538.5,0.39391]
[1727043454776,5.5696,2539.1,2538.1,3.2078]
[1727043454980,3.2078,2538.8,2538.3,5.04682497]
[1727043455178,3.2078,2538.8,2538.1,3.2078]
[1727043455378,3.2078,2538.8,2537.9,1.2008]
[1727043455379,3.2078,2538.6,2538.2,0.39395]
[1727043455584,3.2078,2538.9,2538.1,2.65]
[1727043455784,3.2078,2538.9,2538.4,0.39391]
[1727043456184,3.2078,2538.9,2538.3,0.39393]
[1727043456783,3.2078,2538.9,2538.1,2.65]
[1727043457189,3.2078,2538.9,2538.2,0.39395]
[1727043457488,3.2078,2538.9,2538.1,2.65]
[1727043457689,3.2078,2538.6,2537.9,1.5948]
[1727043457988,1.2081,2538.5,2538.0,0.39398]
[1727043458284,1.2081,2538.5,2537.9,1.2008]
[1727043458476,4.4159,2538.5,2538.0,0.39399]
[1727043458680,4.4159,2538.5,2537.9,1.2008]
[1727043458880,3.2078,2538.4,2537.9,5.624]
[1727043459079,3.2078,2538.1,2538.0,0.39399]
[1727043459282,3.2078,2538.1,2537.9,5.624]
[1727043459986,3.2078,2538.1,2537.9,6.018]
[1727043460186,3.2078,2538.1,2537.9,9.564]
[1727043460384,3.2078,2538.1,2537.9,5.624]
[1727043460689,3.2078,2538.1,2537.8,8.176]
[1727043461093,3.2078,2538.1,2537.2,3.2078]
[1727043461277,2.4411,2538.4,2537.1,9.847]
[1727043461278,3.2078,2537.7,2537.1,9.847]
[1727043461694,3.2078,2537.7,2537.4,0.39407]
[1727043462192,3.2078,2537.7,2537.4,3.04407]
[1727043462389,3.2078,2537.7,2537.1,9.847]
[1727043462699,1.2313,2537.6,2537.1,9.847]
[1727043463081,3.2078,2537.4,2537.1,9.847]
[1727043463285,3.2078,2537.4,2537.0,5.527]
[1727043463480,1.1514,2537.5,2537.0,5.527]
[1727043463481,3.2078,2537.1,2537.0,5.527]
[1727043463684,3.2078,2537.1,2536.6,3.2078]
[1727043463980,1.2313,2537.6,2536.6,3.2078]
[1727043463981,1.1514,2537.0,2536.7,5.527]
[1727043464190,1.1514,2537.0,2536.7,5.92118]
[1727043464395,1.1514,2537.0,2536.8,0.39416]
[1727043464696,1.1514,2537.0,2536.7,5.92118]
[1727043465487,1.1514,2537.0,2536.7,5.527]
[1727043465683,1.1514,2537.0,2536.6,3.60199]
[1727043465684,1.1514,2537.0,2536.6,3.2078]
[1727043465886,3.2078,2536.9,2536.3,2.3386]
[1727043466191,3.2078,2536.9,2536.2,5.528]
[1727043466192,4.3918,2536.9,2536.2,5.528]
[1727043466384,4.3918,2536.9,2536.5,0.3942]
[1727043466589,4.3918,2536.9,2536.6,0.3942]
[1727043466783,4.3918,2536.9,2536.5,0.39421]
[1727043467091,4.3918,2536.9,2536.4,3.04423]
[1727043467291,1.184,2536.9,2536.4,2.65]
[1727043467594,1.184,2536.9,2536.6,0.39419]
[1727043467896,1.1514,2537.0,2536.5,1.1776]
[1727043468098,3.2078,2537.2,2536.9,0.39415]
[1727043468293,3.2078,2537.2,2537.0,5.529]
[1727043468494,3.2078,2537.2,2536.6,5.529]
[1727043468495,3.60191,2537.2,2536.6,5.529]
[1727043468696,1.1634,2537.1,2536.4,5.529]
[1727043469097,1.1634,2537.1,2536.6,0.3942]
[1727043469485,1.1634,2537.1,2536.5,2.65]
[1727043469694,3.2078,2536.9,2536.5,2.65]
[1727043470098,3.2078,2536.9,2536.5,3.04421]
[1727043470891,3.2078,2536.9,2536.5,2.65]
[1727043471497,3.2078,2536.9,2536.5,3.04421]
[1727043471698,1.1634,2537.1,2536.5,3.04421]
[1727043472290,1.1634,2537.1,2536.6,0.3942]
[1727043472489,1.1634,2537.1,2536.5,5.8578]
[1727043472691,1.1634,2537.1,2536.7,0.39418]
[1727043473098,1.1634,2537.1,2536.6,0.39419]
[1727043473302,1.1634,2537.1,2536.5,2.65]
[1727043473495,1.1634,2537.1,2536.5,3.04421]
[1727043473799,1.1634,2537.1,2536.5,2.65]
[1727043474502,1.1634,2537.1,2536.6,0.3942]
[1727043475800,3.2078,2536.7,2536.3,0.39425]
[1727043476001,3.2078,2536.7,2536.1,18.15327]
[1727043476305,2.4051,2536.6,2535.8,3.60213]
[1727043476615,3.2078,2536.4,2535.8,5.529]
[1727043476797,3.2078,2536.4,2535.9,0.39431]
[1727043477290,3.2078,2536.4,2536.0,0.39429]
[1727043477495,3.2078,2536.4,2535.5,5.8578]
[1727043477699,3.2078,2536.4,2536.0,0.39429]
[1727043478699,3.2078,2536.4,2535.9,0.39431]
[1727043479601,3.2078,2536.4,2535.9,3.2078]
[1727043480002,2.4051,2536.6,2535.9,3.2078]
[1727043480192,3.2078,2536.5,2535.9,3.2078]
[1727043480390,3.2078,2536.5,2536.1,0.39428]
[1727043480801,3.2078,2536.5,2535.9,3.2078]
[1727043481105,3.2078,2536.5,2536.2,0.39426]
[1727043481296,3.2078,2536.8,2536.2,3.2078]
[1727043481491,4.4185,2537.1,2536.4,0.39423]
[1727043481797,4.4185,2537.1,2536.3,3.33811]
[1727043481998,3.2078,2537.1,2537.0,0.39414]
[1727043482197,2.65,2538.4,2537.0,0.39414]
[1727043482198,4.4185,2537.7,2537.0,5.311]
[1727043482394,3.2078,2537.7,2537.5,0.39406]
[1727043482706,3.2078,2538.0,2537.4,2.65]
[1727043483011,3.2078,2537.7,2537.4,2.65]
[1727043483301,3.2078,2538.0,2537.4,2.65]
[1727043483497,3.2078,2538.0,2537.4,5.8578]
[1727043483896,3.2078,2538.0,2537.5,0.39405]
[1727043484495,3.2078,2538.0,2537.4,2.65]
[1727043484697,3.2078,2538.0,2537.5,0.39406]
[1727043485809,3.2078,2538.0,2537.4,3.04407]
[1727043486012,3.2078,2538.0,2537.5,0.39406]
[1727043486202,3.2078,2538.0,2537.4,3.04407]
[1727043486401,3.2078,2538.0,2537.4,5.31]
[1727043486703,3.2078,2537.7,2537.4,5.31]
[1727043486902,3.2078,2538.0,2537.4,5.70408]
[1727043487108,3.2078,2538.0,2537.5,0.39405]
[1727043487306,3.2078,2538.0,2537.4,5.31]
[1727043487307,3.2078,2538.0,2537.9,0.394]
[1727043487511,4.4185,2538.6,2537.9,3.94]
[1727043487804,3.2078,2538.6,2538.1,2.65]
[1727043488003,3.2078,2538.3,2537.8,2.4699]
[1727043488203,3.2078,2538.4,2537.9,0.394]
[1727043488397,2.4102,2538.9,2537.8,2.4699]
[1727043488398,3.2078,2538.1,2537.8,2.4699]
[1727043488600,3.2078,2538.1,2537.8,1.2402]
[1727043488904,3.2078,2538.1,2537.6,2.65]
[1727043489106,3.2078,2538.1,2537.7,1.2333]
[1727043489505,3.2078,2538.1,2537.8,0.39402]
[1727043489705,3.2078,2538.1,2537.8,0.39401]
[1727043489908,3.2078,2538.1,2537.7,1.62733]
[1727043490202,3.2078,2538.1,2537.7,1.2333]
[1727043490407,3.2078,2538.1,2538.0,0.39399]
[1727043490610,3.2078,2538.1,2537.9,0.39399]
[1727043490803,3.2078,2538.1,2537.8,0.39401]
[1727043491009,3.2078,2538.1,2537.9,0.394]
[1727043491600,3.2078,2538.1,2537.8,0.39401]
[1727043492306,3.2078,2538.1,2537.7,1.2333]
[1727043492612,3.2078,2538.1,2537.7,1.62733]
[1727043492912,3.2078,2538.1,2537.7,1.2333]
[1727043493408,3.2078,2538.1,2537.7,1.62733]
[1727043493612,3.2078,2538.1,2537.8,0.39401]
[1727043493907,3.2078,2538.1,2537.7,1.62732]
[1727043494103,3.2078,2538.1,2537.8,0.39402]
[1727043494500,3.2078,2538.1,2537.8,0.39401]
[1727043494710,3.2078,2538.1,2537.7,1.62732]
[1727043495409,3.2078,2538.1,2537.8,0.39402]
[1727043496610,3.2078,2538.1,2537.8,0.39401]
[1727043497406,1.1397,2538.8,2537.8,0.39401]
[1727043497407,1.48430324,2539.6,2538.0,2.65]
[1727043497608,1.2528,2539.5,2539.2,3.2078]
[1727043497808,1.2528,2539.5,2539.3,5.531]
[1727043498409,1.1555,2539.9,2539.4,3.2078]
[1727043498609,1.1555,2539.9,2539.4,3.60157]
[1727043498909,1.1555,2539.9,2539.4,3.60156]
[1727043499108,1.1555,2539.9,2539.5,0.39375]
[1727043499310,1.1555,2539.9,2539.4,3.60156]
[1727043499822,1.1555,2539.9,2539.4,3.2078]
[1727043500009,1.1555,2539.9,2539.4,3.60156]
[1727043501518,1.1555,2539.9,2539.4,3.2078]
[1727043502212,1.1555,2539.9,2539.4,3.60157]
[1727043502832,1.1555,2539.9,2539.4,3.2078]
[1727043503135,3.2078,2539.5,2539.0,5.53]